fUSD/lending_fUSD_20251026
["ID","MTS","AMOUNT","RATE_DAILY","PERIOD"]
[392443051,1761480642159,-250.0,0.00044999,120]
[392443052,1761480642167,-250.0,0.00044999,120]
[392443053,1761480642177,-250.0,0.00044999,120]
[392443054,1761480642185,-353.25738842,0.00044999,120]
[392443055,1761480642194,-507711.45822347,0.00045,120]
[392443061,1761480643691,-392.95609974,0.00045,120]
[392443062,1761480643704,-9899.5,0.00045,120]
[392443101,1761480646394,-658.45627312,0.00045,120]
[392443102,1761480646406,-659.41777295,0.00045,120]
[392443103,1761480646418,-466.04289905,0.00045,120]
[392443104,1761480646608,-297.9696,0.00045,120]
[392443105,1761480646620,-1799.9514,0.00045,120]
[392443106,1761480646661,-663.22449778,0.00045,120]
[392443107,1761480646716,-400.26197573,0.00045,120]
[392443108,1761480646772,-5292.19998,0.00045,120]
[392443110,1761480654881,151.0,0.00040673,2]
[392443111,1761480671408,151.0,0.00040292,2]
[392443112,1761480685829,1000.0,0.00034368,2]
[392443113,1761480686166,1000.0,0.00034642,2]
[392443114,1761480686461,1000.0,0.00034916,2]
[392443115,1761480686756,1000.0,0.0003519,2]
[392443116,1761480687037,1000.0,0.00035464,2]
[392443117,1761480687369,1000.0,0.00035738,2]
[392443118,1761480735569,500.0,0.00039024,30]
[392443119,1761480735921,592.9522722,0.00037634,30]
[392443121,1761480931842,250.0,0.00017,2]
[392443137,1761481331337,13.74,0.00021419,2]
[392443139,1761481507930,39000.0,0.00015,2]
[392443140,1761481507960,200000.0,0.00015,2]
[392443141,1761481507988,45557.65100031,0.00015,2]
[392443143,1761481535905,-410.75729838,0.000175,2]
[392443144,1761481540337,-244.63668468,0.000175,2]
[392443145,1761481546100,-244.8924605,0.000175,2]
[392443146,1761481548829,-275.71165504,0.000175,2]
[392443147,1761481558208,-255.1075395,0.000175,2]
[392443148,1761481564470,-184.79555298,0.000175,2]
[392443153,1761481581107,-241.43778296,0.000175,2]
[392443155,1761481588756,-255.07994465,0.000175,2]
[392443156,1761481610376,-153.04862948,0.000175,2]
[392443157,1761481617720,3060.34370094,0.000162,5]
[392443158,1761481640075,-1517.64,0.000153,2]
[392443159,1761481640099,-112.95946341,0.000175,2]
[392443160,1761481640120,-250.0,0.0001925,2]
[392443161,1761481640141,-141.47,0.00021419,2]
[392443162,1761481640163,-155.21,0.00022609,2]
[392443163,1761481640184,-155.21,0.00023799,2]
[392443164,1761481640206,-155.21,0.00024989,2]
[392443165,1761481640227,-155.21,0.00026179,2]
[392443166,1761481640248,-155.21,0.00027369,2]
[392443167,1761481640268,-155.21,0.00028559,2]
[392443168,1761481640287,-15247.97418774,0.00029,2]
[392443169,1761481640309,-155.21,0.00029749,2]
[392443170,1761481640333,-155.21,0.00030939,2]
[392443171,1761481640354,-155.21,0.00032129,2]
[392443172,1761481640376,-155.21,0.00033319,2]
[392443173,1761481640399,-202.83,0.00033691,2]
[392443174,1761481640418,-1000.0,0.00034368,2]
[392443175,1761481640439,-155.21,0.00034509,2]
[392443176,1761481640459,-155.21,0.00035699,2]
[392443177,1761481640479,-155.21,0.00036889,2]
[392443178,1761481640498,-500.0,0.00037365,30]
[392443179,1761481640518,-992.68451632,0.00037419,30]
[392443180,1761481640545,-500.0,0.0003747,30]
[392443181,1761481640569,-155.21,0.00038079,2]
[392443182,1761481640590,-500.0,0.00038554,30]
[392443183,1761481640612,-155.21,0.00039269,2]
[392443184,1761481640632,-266.14505061,0.00039377,30]
[392443185,1761481640652,-500.0,0.00039444,30]
[392443186,1761481640672,-166.66,0.0003977,30]
[392443187,1761481640691,-2515.2529455,0.00039773,2]
[392443188,1761481640711,-169.44266039,0.000398,2]
[392443189,1761481640731,-151.0,0.00039844,14]
[392443190,1761481640751,-225.23738623,0.00039846,31]
[392443191,1761481640775,-500.0,0.00039846,31]
[392443192,1761481640797,-500.0,0.00039846,31]
[392443193,1761481640820,-500.0,0.00039846,31]
[392443194,1761481640842,-500.0,0.00039846,31]
[392443195,1761481640864,-500.0,0.00039846,31]
[392443196,1761481640886,-500.0,0.00039846,31]
[392443197,1761481640909,-500.0,0.00039846,31]
[392443198,1761481640931,-500.0,0.00039846,31]
[392443199,1761481640954,-500.0,0.00039846,31]
[392443200,1761481640981,-500.0,0.00039846,31]
[392443201,1761481641005,-500.0,0.00039846,31]
[392443202,1761481641028,-500.0,0.00039846,31]
[392443203,1761481641051,-500.0,0.00039846,31]
[392443204,1761481641074,-500.0,0.00039846,31]
[392443205,1761481641097,-263.13308255,0.00039846,31]
[392443206,1761481641117,-932.0,0.00039847,5]
[392443207,1761481641136,-500.0,0.00039873,5]
[392443208,1761481641155,-500.0,0.00040421,5]
[392443209,1761481641175,-155.21,0.00040459,2]
[392443210,1761481641195,-151.0,0.00040673,2]
[392443211,1761481641219,-325.0,0.000416,2]
[392443212,1761481641241,-155.21,0.00041649,2]
[392443213,1761481641261,-161.46,0.00042646,7]
[392443214,1761481641280,-1755.33415062,0.000427,2]
[392443215,1761481641300,-155.21,0.00042839,2]
[392443216,1761481641320,-176.0,0.00043,90]
[392443217,1761481641343,-200.0,0.00043004,2]
[392443218,1761481641363,-999.0,0.00043182,36]
[392443219,1761481641384,-300.0,0.00043217,7]
[392443220,1761481641405,-155.53,0.00043288,120]
[392443221,1761481641427,-168.0,0.00043305,30]
[392443222,1761481641446,-5000.0,0.00043757,120]
[392443223,1761481641468,-168.0,0.00043795,7]
[392443224,1761481641488,-157.559,0.00043795,68]
[392443225,1761481641507,-166.66,0.00043956,30]
[392443226,1761481641526,-5000.0,0.00044,120]
[392443227,1761481641546,-475.59,0.00044041,30]
[392443228,1761481641564,-150.0,0.00044043,2]
[392443229,1761481641584,-9584.03015961,0.00044233,2]
[392443230,1761481641602,-173.00857,0.0004455,23]
[392443231,1761481641628,-169.0,0.00044832,2]
[392443232,1761481641648,-176.0,0.00044877,90]
[392443233,1761481641669,-1019.71305078,0.0004489,15]
[392443234,1761481641689,-23031.6068,0.00044892,2]
[392443235,1761481641710,-2519.87369194,0.000449,15]
[392443236,1761481641729,-724.0,0.00044907,30]
[392443237,1761481641750,-1019.71305069,0.00044908,15]
[392443238,1761481641771,-2519.87369187,0.00044917,15]
[392443239,1761481641790,-1019.71305069,0.00044926,15]
[392443240,1761481641810,-2519.87369187,0.00044933,15]
[392443241,1761481641830,-1019.71305069,0.00044943,15]
[392443242,1761481641853,-199.18575029,0.00044949,20]
[392443243,1761481641876,-202.69130789,0.0004495,17]
[392443244,1761481641895,-500.0,0.0004495,60]
[392443245,1761481641915,-500.0,0.0004495,60]
[392443246,1761481641936,-500.0,0.0004495,60]
[392443247,1761481641956,-500.0,0.0004495,60]
[392443248,1761481641976,-500.0,0.0004495,60]
[392443249,1761481641997,-500.0,0.0004495,60]
[392443250,1761481642018,-500.0,0.0004495,60]
[392443251,1761481642038,-500.0,0.0004495,60]
[392443252,1761481642057,-500.0,0.0004495,60]
[392443253,1761481642083,-500.0,0.0004495,60]
[392443254,1761481642103,-500.0,0.0004495,60]
[392443255,1761481642122,-500.0,0.0004495,60]
[392443256,1761481642141,-500.0,0.0004495,60]
[392443257,1761481642163,-500.0,0.0004495,60]
[392443258,1761481642183,-500.0,0.0004495,60]
[392443259,1761481642203,-500.0,0.0004495,60]
[392443260,1761481642223,-2519.87369187,0.0004495,15]
[392443261,1761481642242,-5154.24154576,0.0004495,2]
[392443262,1761481642263,-1019.71305069,0.00044961,15]
[392443263,1761481642284,-2519.87369187,0.00044967,15]
[392443264,1761481642307,-1019.71305069,0.00044979,15]
[392443265,1761481642332,-592.01,0.00044982,2]
[392443266,1761481642352,-2519.87369187,0.00044983,15]
[392443267,1761481642372,-353.29,0.00044988,2]
[392443268,1761481642393,-548.21938802,0.00044989,3]
[392443269,1761481642413,-500.0,0.00044989,120]
[392443270,1761481642432,-500.0,0.00044989,120]
[392443271,1761481642453,-592.01,0.0004499,2]
[392443272,1761481642471,-592.01,0.0004499,2]
[392443273,1761481642491,-592.01,0.0004499,2]
[392443274,1761481642509,-592.01,0.0004499,2]
[392443275,1761481642530,-7126.85204426,0.0004499,3]
[392443276,1761481642550,-4015.28962884,0.0004499,3]
[392443277,1761481642579,-2970.25132232,0.0004499,30]
[392443278,1761481642602,-1000.0,0.00044992,2]
[392443279,1761481642621,-1000.0,0.00044992,2]
[392443280,1761481642640,-1053.1669988,0.00044992,2]
[392443281,1761481642826,-1019.71305069,0.00044997,15]
[392443282,1761481642851,-501.6623063,0.00044998,120]
[392443283,1761481642872,-500.0,0.00044998,120]
[392443284,1761481642894,-500.0,0.00044998,120]
[392443285,1761481642915,-500.0,0.00044998,120]
[392443286,1761481642936,-500.0,0.00044998,120]
[392443287,1761481642957,-14734.70900119,0.00044999,2]
[392443288,1761481642978,-1000.0,0.00044999,120]
[392443289,1761481642999,-500.0,0.00044999,120]
[392443290,1761481643020,-500.0,0.00044999,120]
[392443291,1761481643041,-633.12595775,0.00044999,120]
[392443292,1761481643065,-500.0,0.00044999,120]
[392443293,1761481643086,-3548.88,0.00044999,120]
[392443294,1761481643108,-500.0,0.00044999,120]
[392443295,1761481643129,-500.0,0.00044999,120]
[392443296,1761481643152,-151.0,0.00044999,120]
[392443297,1761481643173,-151.0,0.00044999,120]
[392443298,1761481643194,-151.0,0.00044999,120]
[392443299,1761481643216,-151.0,0.00044999,120]
[392443300,1761481643238,-151.0,0.00044999,120]
[392443301,1761481643260,-151.0,0.00044999,120]
[392443302,1761481643283,-151.0,0.00044999,120]
[392443303,1761481643307,-247.77310714,0.00044999,120]
[392443304,1761481643331,-499.0,0.00044999,120]
[392443305,1761481643351,-500.0,0.00044999,120]
[392443306,1761481643371,-322.61070001,0.00044999,120]
[392443307,1761481643391,-250.0,0.00044999,120]
[392443308,1761481643412,-250.0,0.00044999,120]
[392443309,1761481643432,-250.0,0.00044999,120]
[392443310,1761481643453,-414.0,0.00044999,120]
[392443311,1761481643474,-500.0,0.00044999,120]
[392443312,1761481643495,-250.0,0.00044999,120]
[392443313,1761481643518,-250.0,0.00044999,120]
[392443314,1761481643538,-250.0,0.00044999,120]
[392443315,1761481643559,-429.318,0.00044999,120]
[392443316,1761481643579,-250.0,0.00044999,120]
[392443317,1761481643599,-250.0,0.00044999,120]
[392443318,1761481643619,-250.0,0.00044999,120]
[392443319,1761481643639,-445.202766,0.00044999,120]
[392443320,1761481643659,-250.0,0.00044999,120]
[392443321,1761481643679,-250.0,0.00044999,120]
[392443322,1761481643699,-250.0,0.00044999,120]
[392443323,1761481643720,-461.67526834,0.00044999,120]
[392443324,1761481643744,-250.0,0.00044999,120]
[392443325,1761481643764,-500.0,0.00044999,120]
[392443326,1761481643784,-250.0,0.00044999,120]
[392443327,1761481643805,-500.0,0.00044999,120]
[392443328,1761481643827,-478.75725327,0.00044999,120]
[392443329,1761481643849,-250.0,0.00044999,120]
[392443330,1761481643869,-500.0,0.00044999,120]
[392443331,1761481643891,-250.0,0.00044999,120]
[392443332,1761481643912,-500.0,0.00044999,120]
[392443333,1761481643933,-496.47127164,0.00044999,120]
[392443334,1761481643957,-250.0,0.00044999,120]
[392443335,1761481643980,-518.5,0.00044999,120]
[392443336,1761481644002,-250.0,0.00044999,120]
[392443337,1761481644023,-500.0,0.00044999,120]
[392443338,1761481644043,-250.0,0.00044999,120]
[392443339,1761481644064,-404.5931713,0.00044999,120]
[392443340,1761481644084,-537.6845,0.00044999,120]
[392443341,1761481644106,-250.0,0.00044999,120]
[392443342,1761481644127,-500.0,0.00044999,120]
[392443343,1761481644148,-250.0,0.00044999,120]
[392443344,1761481644170,-220.11165493,0.00044999,120]
[392443345,1761481644190,-250.0,0.00044999,120]
[392443346,1761481644212,-500.0,0.00044999,120]
[392443347,1761481644233,-353.25738842,0.00044999,120]
[392443348,1761481644254,-500.0,0.00044999,120]
[392443349,1761481644275,-500.0,0.00044999,120]
[392443350,1761481644297,-250.0,0.00044999,120]
[392443351,1761481644318,-500.0,0.00044999,120]
[392443352,1761481644341,-250.0,0.00044999,120]
[392443353,1761481644362,-500.0,0.00044999,120]
[392443354,1761481644385,-500.0,0.00044999,120]
[392443355,1761481644406,-250.0,0.00044999,120]
[392443356,1761481644426,-250.0,0.00044999,120]
[392443357,1761481644447,-500.0,0.00044999,120]
[392443358,1761481644466,-500.0,0.00044999,120]
[392443359,1761481644487,-500.0,0.00044999,120]
[392443360,1761481644507,-250.0,0.00044999,120]
[392443361,1761481644528,-500.0,0.00044999,120]
[392443362,1761481644549,-500.0,0.00044999,120]
[392443363,1761481644569,-500.0,0.00044999,120]
[392443364,1761481644590,-250.0,0.00044999,120]
[392443365,1761481644610,-500.0,0.00044999,120]
[392443366,1761481644631,-500.0,0.00044999,120]
[392443367,1761481644652,-500.0,0.00044999,120]
[392443368,1761481644672,-500.0,0.00044999,120]
[392443369,1761481644692,-500.0,0.00044999,120]
[392443370,1761481644713,-250.0,0.00044999,120]
[392443371,1761481644734,-500.0,0.00044999,120]
[392443372,1761481644754,-500.0,0.00044999,120]
[392443373,1761481644775,-250.0,0.00044999,120]
[392443374,1761481644795,-500.0,0.00044999,120]
[392443375,1761481644816,-39218.40849699,0.00045,44]
[392443386,1761481721205,7830.0496995,0.0001,2]
[392443388,1761481749086,-348.78583039,0.00018,2]
[392443389,1761481749107,-242.98723868,0.00019,2]
[392443390,1761481749128,-1558.004266,0.000199,2]
[392443391,1761481749148,-23903.29511636,0.0002,2]
[392443392,1761481749168,-10539.22888857,0.0002,2]
[392443393,1761481756081,-11160.10035785,0.0002,2]
[392443394,1761481756100,-1836.84809804,0.00026,2]
[392443395,1761481756119,-213.43636344,0.00026,2]
[392443396,1761481756149,-160.62707384,0.00026,2]
[392443397,1761481756174,-1019.30444587,0.00027,2]
[392443398,1761481756194,-530.0,0.00027,2]
[392443399,1761481756214,-35047.36506096,0.0003095,2]
[392443400,1761481756416,-1547.72276521,0.0003095,2]
[392443401,1761481756438,-260.81401186,0.00037226,30]
[392443402,1761481756463,-500.0,0.00037589,15]
[392443403,1761481756484,-307.01478695,0.00037589,15]
[392443404,1761481756503,-4265.39877235,0.0003759,2]
[392443405,1761481756522,-1007.94947682,0.00039746,2]
[392443406,1761481756544,-1082.77616812,0.00039747,12]
[392443407,1761481756562,-151.0,0.00039843,14]
[392443408,1761481756583,-224.9316466,0.00039846,31]
[392443409,1761481756606,-501.61637599,0.000399,5]
[392443410,1761481756627,-1007.94947674,0.00040335,15]
[392443411,1761481756648,-1007.94947674,0.00040925,15]
[392443412,1761481756670,-18624.05198262,0.00041096,120]
[392443413,1761481779729,151.73434893,0.00039746,15]
[392443414,1761481786022,23.99925107,0.00033496,2]
[392443415,1761481786044,492.7511331,0.00033496,2]
[392443416,1761481786066,8566.117476,0.00033496,2]
[392443432,1761481831565,-443.8799998,0.00033496,2]
[392443433,1761481831623,-3313.3384161,0.00033496,2]
[392443434,1761481831845,-673.38616737,0.00033496,2]
[392443435,1761481831859,-3861.51514014,0.00033496,2]
[392443436,1761481831871,-1204.27485986,0.00033496,2]
[392443437,1761481831881,-2796.80480008,0.00033496,2]
[392443438,1761481831894,-1382.23956528,0.00033496,2]
[392443439,1761481831904,-5078.0646429,0.00037758,2]
[392443440,1761481831913,-1133.069377,0.00038709,2]
[392443441,1761481831926,-169.44266038,0.00039746,2]
[392443442,1761481831935,-200.0,0.00039846,30]
[392443443,1761481831944,-300.0,0.00039846,30]
[392443444,1761481831953,-172642.42952345,0.00039846,2]
[392443445,1761481831964,-19943.12783308,0.00039846,2]
[392443446,1761481831975,-22665.9685349,0.00039846,2]
[392443523,1761481840224,-157.45215262,0.00039845,31]
[392443524,1761481840233,-25964.39205857,0.00039846,2]
[392443525,1761481840249,-28090.84071038,0.00039846,2]
[392443526,1761481840260,-419.08661219,0.00039846,2]
[392443527,1761481840270,-968.0328299,0.00039846,2]
[392443528,1761481840281,-42033.83070109,0.00039846,2]
[392443529,1761481840307,-315014.48078926,0.00039846,2]
[392443530,1761481840316,-11522.55117705,0.00039846,2]
[392443531,1761481840326,-58412.5575387,0.00039846,2]
[392443532,1761481840335,-4999.999999,0.00039846,2]
[392443533,1761481840346,-15776.34624496,0.00039846,2]
[392443534,1761481840355,-1864.61141059,0.00039846,2]
[392443535,1761481840365,-554.62500096,0.00039846,2]
[392443536,1761481840375,-1135.2082927,0.00039846,2]
[392443537,1761481840384,-408.88477653,0.00039846,2]
[392443538,1761481840392,-1505.88766858,0.00039846,2]
[392443539,1761481840406,-24759.26217337,0.00039846,2]
[392443540,1761481840415,-20585.83537729,0.00039846,2]
[392443541,1761481840425,-2476.894918,0.00039846,2]
[392443542,1761481840434,-206.0597595,0.00039846,2]
[392443543,1761481840444,-877.00690795,0.00039846,2]
[392443544,1761481840453,-505.91234781,0.00039846,2]
[392443545,1761481840462,-287.27481859,0.00039846,2]
[392443546,1761481840471,-5777.04708166,0.00039846,2]
[392443547,1761481840480,-1131.2715692,0.00039846,2]
[392443548,1761481840492,-4652.37358167,0.00039846,2]
[392443549,1761481840502,-1717.1183365,0.00039846,2]
[392443550,1761481840511,-1050.94919373,0.00039846,2]
[392443551,1761481840521,-12822.05434701,0.00039846,2]
[392443552,1761481840530,-160.4973231,0.00039846,2]
[392443553,1761481840542,-202.65055955,0.00039846,2]
[392443554,1761481840551,-754.47417146,0.00039846,2]
[392443555,1761481840562,-4266.0,0.00039846,2]
[392443556,1761481840571,-1342.84049675,0.00039846,2]
[392443557,1761481840580,-151.67042846,0.00039846,2]
[392443558,1761481840591,-184.84828962,0.00039846,2]
[392443559,1761481840601,-3358.07909043,0.00039846,2]
[392443560,1761481840612,-11375.94801738,0.00041096,120]
[392443561,1761481840623,-1007.94947674,0.00041514,15]
[392443562,1761481840635,-1000.0,0.00041594,21]
[392443563,1761481840646,-1007.94947674,0.00042103,15]
[392443564,1761481840657,-1065.0,0.0004233,2]
[392443565,1761481840669,-499.0,0.00042415,2]
[392443566,1761481840680,-1007.94947674,0.00042693,15]
[392443567,1761481840690,-1007.94947674,0.00043282,15]
[392443568,1761481840699,-3401.01,0.00043835,120]
[392443569,1761481840709,-500.0,0.00043835,120]
[392443570,1761481840721,-773.0,0.00043838,2]
[392443571,1761481840731,-1007.94947674,0.00043871,15]
[392443572,1761481840740,-1190.0,0.00043925,2]
[392443573,1761481840750,-622.0,0.00044013,2]
[392443574,1761481840760,-250.0,0.00044022,120]
[392443575,1761481840771,-1848.0,0.000441,2]
[392443576,1761481840780,-3401.01,0.00044109,120]
[392443577,1761481840790,-1255.0,0.00044187,2]
[392443578,1761481840800,-3401.01,0.00044383,120]
[392443579,1761481840809,-1007.94947674,0.00044461,15]
[392443580,1761481840820,-3401.01,0.00044657,120]
[392443581,1761481840830,-3401.01,0.00044931,120]
[392443582,1761481840842,-717.31369858,0.0004495,2]
[392443583,1761481840852,-169.11988858,0.0004495,2]
[392443584,1761481840862,-500.0,0.00044989,120]
[392443585,1761481840873,-73662.59871693,0.0004499,3]
[392443586,1761481840887,-2000.00001184,0.0004499,3]
[392443597,1761481842606,-500.0,0.000396,30]
[392443598,1761481842617,-2466.5499997,0.0004499,3]
[392443599,1761481842783,-197.76516989,0.0004499,3]
[392443604,1761481843328,-45503.38182931,0.0004499,3]
[392443605,1761481845544,-305.91391527,0.00039746,2]
[392443606,1761481845555,-168.91684273,0.0004499,3]
[392443607,1761481845568,-9890.97201227,0.0004499,3]
[392443608,1761481845766,-1848.29088,0.0004499,3]
[392443609,1761481845779,-5691.861,0.0004499,3]
[392443610,1761481845791,-591.96,0.0004499,3]
[392443614,1761482157152,155.0,0.00031507,120]
[392443617,1761482734124,250.0,0.00017,2]
[392443618,1761482781476,-300.0,0.00019,2]
[392443620,1761482817134,-150.0,0.00030649,2]
[392443621,1761482817156,-166.47,0.00030923,2]
[392443622,1761482817180,-3.8567097,0.0003388,2]
[392443623,1761482834082,-353.1612473,0.0003388,2]
[392443624,1761482834104,-180.982481,0.0003388,2]
[392443625,1761482834126,-476.61195222,0.00034355,2]
[392443626,1761482834151,-246.50304711,0.00034363,2]
[392443627,1761482951095,-196.38717215,0.00032,120]
[392443628,1761482951116,-196.38717215,0.00033,120]
[392443629,1761482951137,-258.76628767,0.00034363,2]
[392443630,1761482962067,-608.58,0.00034363,2]
[392443631,1761482971109,-132.65371233,0.00034363,2]
[392443632,1761482971129,-1000.0,0.00034637,2]
[392443633,1761482971149,-449.31834422,0.000352,120]
[392443634,1761482971170,-1163.51699959,0.000352,120]
[392443649,1761483031873,-200.0,0.00034,120]
[392443650,1761483031883,-67.21077709,0.000352,120]
[392443651,1761483031893,-182.58026006,0.00037982,2]
[392443652,1761483031903,-2233.96588157,0.00038082,7]
[392443653,1761483031912,-255.46799123,0.00038276,30]
[392443654,1761483031929,-1439.0,0.0003832,5]
[392443655,1761483031938,-150.0,0.00038322,2]
[392443656,1761483031947,-171.45,0.00038322,2]
[392443657,1761483031957,-1779.0,0.00038371,2]
[392443658,1761483031966,-1600.0,0.00038446,5]
[392443659,1761483031975,-1443.0,0.00038447,2]
[392443660,1761483031984,-230.0,0.00038475,2]
[392443661,1761483031994,-400.0,0.00038523,5]
[392443662,1761483032003,-1786.0,0.00038524,2]
[392443663,1761483032012,-1185.0,0.000386,2]
[392443664,1761483032022,-832.0,0.00038677,2]
[392443665,1761483032031,-539.96,0.000388,7]
[392443666,1761483032040,-4715.71,0.000388,2]
[392443667,1761483032049,-1447.21,0.00039,2]
[392443668,1761483032058,-1193.0,0.0003918,2]
[392443669,1761483032070,-1751.0,0.00039258,2]
[392443670,1761483032079,-899.0,0.00039337,2]
[392443671,1761483032088,-1178.64509456,0.00039415,2]
[392443672,1761483032107,-415.35490544,0.00039415,2]
[392443673,1761483032116,-456.0,0.00039493,2]
[392443674,1761483032129,-542.0,0.00039571,2]
[392443675,1761483032138,-136.93892719,0.00039649,2]
[392443676,1761483032149,-102.06107281,0.00039649,2]
[392443677,1761483032159,-471.0,0.00039728,2]
[392443678,1761483032169,-884.0,0.00039806,2]
[392443679,1761483032178,-157.559,0.00039842,56]
[392443680,1761483032187,-200.0,0.00039842,30]
[392443681,1761483032196,-13.03904741,0.00039842,30]
[392443682,1761483032207,-286.96095259,0.00039842,30]
[392443683,1761483032217,-384.69441234,0.00040199,7]
[392443684,1761483032228,-220.30558766,0.00040199,7]
[392443685,1761483032237,-605.0,0.00040356,2]
[392443686,1761483032246,-204.87,0.00040409,2]
[392443687,1761483032255,-605.0,0.00040852,2]
[392443688,1761483032264,-500.0,0.00040925,2]
[392443689,1761483032274,-356.2347112,0.00040953,120]
[392443690,1761483032285,-563.89,0.00040953,120]
[392443691,1761483032296,-79.8752888,0.00040953,120]
[392443692,1761483032305,-7637.53,0.00040962,2]
[392443693,1761483032316,-1183.06,0.00040979,120]
[392443694,1761483032326,-168.0,0.00041,90]
[392443695,1761483032335,-364.0,0.00041154,5]
[392443696,1761483032345,-163.3,0.00041203,2]
[392443697,1761483032355,-1858.0,0.0004123,5]
[392443698,1761483032364,-1000.0,0.00041252,2]
[392443699,1761483032374,-1320.0,0.000414,2]
[392443700,1761483032383,-168.0,0.00041409,2]
[392443701,1761483032392,-300.0,0.00041425,24]
[392443702,1761483032401,-605.0,0.00041463,120]
[392443703,1761483032410,-1004.00575938,0.00041473,2]
[392443704,1761483032419,-202.0,0.000415,2]
[392443705,1761483032428,-168.0,0.00041768,2]
[392443706,1761483032437,-203.0,0.00041799,120]
[392443707,1761483032447,-202.0,0.00041827,7]
[392443708,1761483032457,-204.87,0.00041924,2]
[392443709,1761483032467,-400.0,0.00042082,30]
[392443710,1761483032477,-557.14563297,0.00042335,2]
[392443809,1761483037722,-2349.85436703,0.00042335,2]
[392443810,1761483037731,-2277.19,0.00042595,2]
[392443811,1761483037740,-179.95993737,0.0004269,4]
[392443812,1761483037749,-1000.0,0.00042691,4]
[392443813,1761483037758,-500.0,0.00042691,31]
[392443814,1761483037767,-500.0,0.00042691,31]
[392443815,1761483037776,-500.0,0.00042691,31]
[392443816,1761483037785,-500.0,0.00042691,31]
[392443817,1761483037793,-500.0,0.00042691,31]
[392443818,1761483037802,-287.96023991,0.00042691,31]
[392443819,1761483037814,-30446.44,0.00042692,2]
[392443820,1761483037824,-1000.0,0.0004288,120]
[392443821,1761483037833,-157.52,0.00043114,2]
[392443822,1761483037842,-193.34,0.00043114,2]
[392443823,1761483037851,-713.36,0.00043132,30]
[392443824,1761483037861,-475.88,0.00043132,30]
[392443825,1761483037870,-475.88,0.00043132,30]
[392443826,1761483037879,-696.9,0.00043132,30]
[392443827,1761483037891,-300.35,0.00043132,30]
[392443828,1761483037900,-471.76,0.00043132,30]
[392443829,1761483037910,-202.0,0.00043137,2]
[392443830,1761483037919,-185.86776841,0.00043285,2]
[392443831,1761483037928,-193.34,0.00043416,2]
[392443832,1761483037938,-204.87,0.0004344,2]
[392443833,1761483037947,-193.34,0.00043718,2]
[392443834,1761483037959,-329.32252374,0.00043758,15]
[392443835,1761483037968,-2137.9181,0.00043758,2]
[392443836,1761483037978,-6625.2234,0.00043758,2]
[392443837,1761483037987,-500.0,0.00043835,120]
[392443838,1761483037996,-250.0,0.00043835,120]
[392443839,1761483038007,-753.94,0.00043835,30]
[392443840,1761483038017,-500.0,0.00043835,120]
[392443842,1761483038026,-150.0,0.00043835,60]
[392443844,1761483038035,-29679.0320445,0.00043858,2]
[392443845,1761483038044,-3127.2167768,0.00043858,2]
[392443847,1761483038053,-3699.2083293,0.00043858,2]
[392443849,1761483038062,-7245.0977389,0.00043858,2]
[392443850,1761483038073,-28999.45892131,0.00043858,2]
[392443851,1761483038206,-13196.62458339,0.00043858,2]
[392443852,1761483038215,-3265.514772,0.00043858,2]
[392443853,1761483038225,-172.94559104,0.00043858,30]
[392443854,1761483038235,-1200.0,0.0004388,120]
[392443855,1761483038244,-150.0,0.0004389,60]